[Event "*** Titled Tuesday 3|2 Blitz"]
[Site "Chess.com"]
[Date "2015.10.06"]
[Round "9"]
[White "AleksandrNevski"]
[Black "kesarev"]
[Result "0-1"]
[WhiteElo "2424"]
[BlackElo "2217"]
[TimeControl "180+2"]
[EndTime "12:54:40 PDT"]
[Termination "kesarev won on time"]

1. c4 {[%clk 0:03:01.9]} 1... Nf6 {[%clk 0:02:59.7]} 2. g3 {[%clk 0:03:03.4]}
2... g6 {[%clk 0:02:50.8]} 3. Bg2 {[%clk 0:03:04.9]} 3... Bg7 {[%clk 0:02:51.8]}
4. Nc3 {[%clk 0:03:06.6]} 4... O-O {[%clk 0:02:52.4]} 5. d4 {[%clk 0:03:08.3]}
5... d6 {[%clk 0:02:53.1]} 6. h3 {[%clk 0:03:09.7]} 6... Nc6 {[%clk 0:02:53.1]}
7. e3 {[%clk 0:03:10.3]} 7... Bd7 {[%clk 0:02:48]} 8. Nge2 {[%clk 0:03:11.6]}
8... Rb8 {[%clk 0:02:44.4]} 9. O-O {[%clk 0:03:12.2]} 9... a6 {[%clk 0:02:41.3]}
10. a4 {[%clk 0:03:09.2]} 10... a5 {[%clk 0:02:40.7]} 11. b3 {[%clk 0:03:09.6]}
11... Nb4 {[%clk 0:02:34.2]} 12. e4 {[%clk 0:02:59.3]} 12... c5 {[%clk
0:02:29.3]} 13. dxc5 {[%clk 0:02:46.7]} 13... dxc5 {[%clk 0:02:28.9]} 14. e5
{[%clk 0:02:26.2]} 14... Ne8 {[%clk 0:02:23.6]} 15. f4 {[%clk 0:02:25.8]} 15...
Bc6 {[%clk 0:01:37.2]} 16. Be3 {[%clk 0:02:20.3]} 16... b6 {[%clk 0:01:29.1]}
17. Nd5 {[%clk 0:02:06.8]} 17... f6 {[%clk 0:01:24.8]} 18. Nxb4 {[%clk 0:01:58]}
18... Bxg2 {[%clk 0:01:25.3]} 19. Kxg2 {[%clk 0:01:54]} 19... axb4 {[%clk
0:01:24.4]} 20. Qxd8 {[%clk 0:01:28.6]} 20... Rxd8 {[%clk 0:01:24.7]} 21. a5
{[%clk 0:01:30.5]} 21... fxe5 {[%clk 0:01:18.1]} 22. axb6 {[%clk 0:01:24]} 22...
exf4 {[%clk 0:01:15.4]} 23. Nxf4 {[%clk 0:01:25.7]} 23... Bxa1 {[%clk
0:01:11.6]} 24. Rxa1 {[%clk 0:01:27.6]} 24... Rf5 {[%clk 0:01:04.2]} 25. b7
{[%clk 0:00:56.7]} 25... Nd6 {[%clk 0:00:47.2]} 26. Ne6 {[%clk 0:00:33.9]} 26...
Rb8 {[%clk 0:00:32.9]} 27. Nxc5 {[%clk 0:00:34]} 27... Nxb7 {[%clk 0:00:25.6]}
28. Nd3 {[%clk 0:00:34]} 28... Nd6 {[%clk 0:00:25.8]} 29. g4 {[%clk 0:00:33.9]}
29... Rf7 {[%clk 0:00:25.3]} 30. Ne5 {[%clk 0:00:33.2]} 30... Rff8 {[%clk
0:00:19.9]} 31. Nd7 {[%clk 0:00:33.8]} 31... Ra8 {[%clk 0:00:21]} 32. Rd1 {[%clk
0:00:30.1]} 32... Ra2+ {[%clk 0:00:21.8]} 33. Kg1 {[%clk 0:00:27.8]} 33... Rfa8
{[%clk 0:00:20]} 34. Rd3 {[%clk 0:00:19]} 34... Rb2 {[%clk 0:00:16.9]} 35. Bh6
{[%clk 0:00:16.7]} 35... Ra1+ {[%clk 0:00:16.3]} 0-1

[Event "*** Titled Tuesday 3|2 Blitz"]
[Site "Chess.com"]
[Date "2015.10.06"]
[Round "9"]
[White "BIG_Pirate"]
[Black "armago"]
[Result "1-0"]
[WhiteElo "2294"]
[BlackElo "2078"]
[TimeControl "180+2"]
[EndTime "12:55:02 PDT"]
[Termination "BIG_Pirate won on time"]

1. e4 {[%clk 0:03:01]} 1... c5 {[%clk 0:02:58.5]} 2. Nf3 {[%clk 0:03:01.4]} 2...
Nc6 {[%clk 0:02:58.8]} 3. d4 {[%clk 0:03:02.3]} 3... cxd4 {[%clk 0:02:52.7]} 4.
Nxd4 {[%clk 0:03:04.2]} 4... Nf6 {[%clk 0:02:54]} 5. Nc3 {[%clk 0:03:05]} 5...
e5 {[%clk 0:02:49.2]} 6. Ndb5 {[%clk 0:03:05.3]} 6... d6 {[%clk 0:02:50.1]} 7.
Bg5 {[%clk 0:03:05.1]} 7... a6 {[%clk 0:02:50.7]} 8. Na3 {[%clk 0:03:05.8]} 8...
b5 {[%clk 0:02:51]} 9. Nd5 {[%clk 0:03:06.9]} 9... Be7 {[%clk 0:02:52.2]} 10.
Bxf6 {[%clk 0:03:07.8]} 10... Bxf6 {[%clk 0:02:52.9]} 11. c3 {[%clk 0:03:09.4]}
11... Bg5 {[%clk 0:02:51.7]} 12. Nc2 {[%clk 0:03:10]} 12... Rb8 {[%clk
0:02:52.8]} 13. a3 {[%clk 0:03:09.2]} 13... O-O {[%clk 0:02:51.6]} 14. Ncb4
{[%clk 0:03:10.1]} 14... Bb7 {[%clk 0:02:49.7]} 15. Be2 {[%clk 0:03:08]} 15...
a5 {[%clk 0:02:50.4]} 16. Nc2 {[%clk 0:03:02.7]} 16... Ne7 {[%clk 0:02:45.8]}
17. Nxe7+ {[%clk 0:02:51.1]} 17... Qxe7 {[%clk 0:02:45.7]} 18. Bf3 {[%clk
0:02:42.6]} 18... f5 {[%clk 0:02:43]} 19. exf5 {[%clk 0:02:43.4]} 19... e4
{[%clk 0:02:42.1]} 20. Bg4 {[%clk 0:02:39.2]} 20... e3 {[%clk 0:02:36.7]} 21.
O-O {[%clk 0:02:37.6]} 21... Qe4 {[%clk 0:02:11.7]} 22. f3 {[%clk 0:02:13.7]}
22... Qe5 {[%clk 0:01:49]} 23. Re1 {[%clk 0:01:51.8]} 23... Rbe8 {[%clk
0:01:42.7]} 24. Nd4 {[%clk 0:01:50.8]} 24... b4 {[%clk 0:01:41.4]} 25. axb4
{[%clk 0:01:51.1]} 25... axb4 {[%clk 0:01:41.6]} 26. Ra7 {[%clk 0:01:51.3]}
26... Ba8 {[%clk 0:01:33.2]} 27. Ne6 {[%clk 0:01:40.4]} 27... Rxe6 {[%clk
0:01:17.3]} 28. fxe6 {[%clk 0:01:40.3]} 28... bxc3 {[%clk 0:01:13.6]} 29. bxc3
{[%clk 0:01:40]} 29... Qc5 {[%clk 0:01:13.8]} 30. Qd4 {[%clk 0:01:37.7]} 30...
Qxd4 {[%clk 0:00:57.3]} 31. cxd4 {[%clk 0:01:38.2]} 31... Bf6 {[%clk 0:00:58.5]}
32. Ra4 {[%clk 0:01:31.2]} 32... Bc6 {[%clk 0:00:50.1]} 33. Rb4 {[%clk
0:01:24.3]} 33... Bg5 {[%clk 0:00:47.5]} 34. h4 {[%clk 0:01:07.1]} 34... Bh6
{[%clk 0:00:42.3]} 35. Rb6 {[%clk 0:01:02.2]} 35... Ba4 {[%clk 0:00:36.1]} 36.
Rxd6 {[%clk 0:00:58.5]} 36... Rb8 {[%clk 0:00:31.4]} 37. Ra6 {[%clk 0:00:57.3]}
37... Be8 {[%clk 0:00:30.3]} 38. g3 {[%clk 0:00:53.7]} 38... Rb2 {[%clk
0:00:26.9]} 39. f4 {[%clk 0:00:54.2]} 39... g5 {[%clk 0:00:18.4]} 40. hxg5
{[%clk 0:00:51.9]} 40... Bg7 {[%clk 0:00:16.5]} 41. Ra8 {[%clk 0:00:46.9]} 41...
Bxd4 {[%clk 0:00:12.8]} 42. Rxe8+ {[%clk 0:00:47.7]} 1-0

[Event "*** Titled Tuesday 3|2 Blitz"]
[Site "Chess.com"]
[Date "2015.10.06"]
[Round "9"]
[White "pKiLz5Rn9b"]
[Black "Keranke"]
[Result "0-1"]
[WhiteElo "2399"]
[BlackElo "2581"]
[TimeControl "180+2"]
[EndTime "12:55:23 PDT"]
[Termination "Keranke won by resignation"]

1. e4 {[%clk 0:03:01.9]} 1... c5 {[%clk 0:02:56.1]} 2. c3 {[%clk 0:03:00.3]}
2... g6 {[%clk 0:02:56.7]} 3. d4 {[%clk 0:02:54.4]} 3... cxd4 {[%clk 0:02:56.6]}
4. cxd4 {[%clk 0:02:56.3]} 4... d5 {[%clk 0:02:58]} 5. e5 {[%clk 0:02:57.7]}
5... Nh6 {[%clk 0:02:58.1]} 6. h3 {[%clk 0:02:58.4]} 6... Nc6 {[%clk 0:02:58.5]}
7. Nc3 {[%clk 0:02:58.6]} 7... Bg7 {[%clk 0:02:56.6]} 8. g4 {[%clk 0:02:58.2]}
8... O-O {[%clk 0:02:56.1]} 9. Bg2 {[%clk 0:02:57.9]} 9... e6 {[%clk 0:02:43.7]}
10. Nf3 {[%clk 0:02:56.2]} 10... Kh8 {[%clk 0:02:41.1]} 11. Be3 {[%clk
0:02:53.9]} 11... b6 {[%clk 0:02:36.4]} 12. Qd2 {[%clk 0:02:44]} 12... Ng8
{[%clk 0:02:37.4]} 13. h4 {[%clk 0:02:36.3]} 13... h6 {[%clk 0:02:25.8]} 14. h5
{[%clk 0:02:23.6]} 14... g5 {[%clk 0:02:27.1]} 15. Nxg5 {[%clk 0:02:20.7]} 15...
hxg5 {[%clk 0:02:29]} 16. h6 {[%clk 0:02:16.3]} 16... Bxe5 {[%clk 0:02:23.2]}
17. dxe5 {[%clk 0:02:13.2]} 17... Nxe5 {[%clk 0:02:22.8]} 18. h7 {[%clk
0:02:04]} 18... Ne7 {[%clk 0:02:23.2]} 19. Bxg5 {[%clk 0:01:48.9]} 19... f6
{[%clk 0:02:24.4]} 20. Bh6 {[%clk 0:01:39.3]} 20... Rf7 {[%clk 0:02:25.1]} 21.
O-O-O {[%clk 0:01:30.3]} 21... Ba6 {[%clk 0:02:22.6]} 22. Kb1 {[%clk 0:01:27.6]}
22... Nxg4 {[%clk 0:02:17.9]} 23. Bf4 {[%clk 0:01:22.8]} 23... Ng6 {[%clk
0:02:08.5]} 24. Bg3 {[%clk 0:01:17.4]} 24... Rc8 {[%clk 0:02:06.9]} 25. f3
{[%clk 0:01:13.5]} 25... N4e5 {[%clk 0:02:08]} 26. Qh6 {[%clk 0:01:06.1]} 26...
Qf8 {[%clk 0:02:03.4]} 27. f4 {[%clk 0:01:01.8]} 27... Qxh6 {[%clk 0:01:44.2]}
28. Rxh6 {[%clk 0:01:02.4]} 28... Ng4 {[%clk 0:01:45.8]} 29. Rxg6 {[%clk
0:01:00.1]} 29... Ne3 {[%clk 0:01:47.5]} 30. Rd2 {[%clk 0:00:41.4]} 30... Nxg2
{[%clk 0:01:47.8]} 31. f5 {[%clk 0:00:37.3]} 31... d4 {[%clk 0:01:07]} 32. Ne4
{[%clk 0:00:25]} 32... Rxh7 {[%clk 0:00:59.1]} 33. b3 {[%clk 0:00:26.2]} 33...
Ne3 {[%clk 0:00:48.2]} 34. fxe6 {[%clk 0:00:24.8]} 34... b5 {[%clk 0:00:32.6]}
35. Nd6 {[%clk 0:00:20.5]} 35... Rf8 {[%clk 0:00:22.8]} 36. Rxd4 {[%clk
0:00:18.9]} 36... b4 {[%clk 0:00:21.4]} 37. Rxb4 {[%clk 0:00:19.7]} 37... Bd3+
{[%clk 0:00:22.4]} 38. Kb2 {[%clk 0:00:17.1]} 38... Bxg6 {[%clk 0:00:24.3]} 39.
Bf4 {[%clk 0:00:07.6]} 39... Nd5 {[%clk 0:00:24.4]} 40. Rd4 {[%clk 0:00:05.6]}
40... Nxf4 {[%clk 0:00:25.4]} 41. Rxf4 {[%clk 0:00:07.5]} 41... Re7 {[%clk
0:00:26.8]} 42. Rh4+ {[%clk 0:00:09]} 42... Kg7 {[%clk 0:00:28.1]} 43. Rg4
{[%clk 0:00:02.8]} 43... f5 {[%clk 0:00:29.1]} 44. Rg5 {[%clk 0:00:02.7]} 44...
Rxe6 {[%clk 0:00:29.7]} 45. Nc4 {[%clk 0:00:04.6]} 45... f4 {[%clk 0:00:30.7]}
46. Kc3 {[%clk 0:00:06.5]} 46... f3 {[%clk 0:00:32.1]} 47. Rg1 {[%clk
0:00:08.4]} 47... f2 {[%clk 0:00:33.5]} 48. Rf1 {[%clk 0:00:10.3]} 48... Re1
{[%clk 0:00:35.1]} 49. Nd2 {[%clk 0:00:11.2]} 49... Rxf1 {[%clk 0:00:34.5]} 50.
Nxf1 {[%clk 0:00:13.1]} 50... Bf5 {[%clk 0:00:35.9]} 51. Ng3 {[%clk 0:00:13.1]}
51... Bh3 {[%clk 0:00:36.3]} 0-1

[Event "*** Titled Tuesday 3|2 Blitz"]
[Site "Chess.com"]
[Date "2015.10.06"]
[Round "9"]
[White "AlexanderL"]
[Black "Konavets"]
[Result "0-1"]
[WhiteElo "2546"]
[BlackElo "2530"]
[TimeControl "180+2"]
[EndTime "12:55:56 PDT"]
[Termination "Konavets won on time"]

1. d4 {[%clk 0:02:54.6]} 1... Nf6 {[%clk 0:03:01.3]} 2. c4 {[%clk 0:02:55.3]}
2... g6 {[%clk 0:03:02.6]} 3. Nf3 {[%clk 0:02:54.5]} 3... Bg7 {[%clk 0:03:03.6]}
4. e3 {[%clk 0:02:55.8]} 4... O-O {[%clk 0:03:04.8]} 5. Be2 {[%clk 0:02:57.1]}
5... c5 {[%clk 0:03:01.8]} 6. d5 {[%clk 0:02:57.4]} 6... d6 {[%clk 0:03:03.2]}
7. Nc3 {[%clk 0:02:57.1]} 7... e6 {[%clk 0:03:04.6]} 8. O-O {[%clk 0:02:57.8]}
8... exd5 {[%clk 0:03:06.1]} 9. cxd5 {[%clk 0:02:59]} 9... Re8 {[%clk 0:03:08]}
10. Nd2 {[%clk 0:02:59]} 10... a6 {[%clk 0:03:09]} 11. a4 {[%clk 0:02:59.2]}
11... Nbd7 {[%clk 0:03:10.4]} 12. e4 {[%clk 0:02:59.6]} 12... b6 {[%clk
0:03:05.8]} 13. Re1 {[%clk 0:02:58.8]} 13... Rb8 {[%clk 0:03:06.2]} 14. Bf1
{[%clk 0:02:57.2]} 14... Qc7 {[%clk 0:03:00.6]} 15. f4 {[%clk 0:02:56.5]} 15...
c4 {[%clk 0:02:49.8]} 16. Bxc4 {[%clk 0:02:36.9]} 16... b5 {[%clk 0:02:48.8]}
17. axb5 {[%clk 0:02:37.5]} 17... axb5 {[%clk 0:02:49.8]} 18. Bf1 {[%clk
0:02:20.6]} 18... b4 {[%clk 0:02:46.9]} 19. Na4 {[%clk 0:02:21.7]} 19... Qa7+
{[%clk 0:02:32.6]} 20. Kh1 {[%clk 0:02:20.6]} 20... Nc5 {[%clk 0:02:33.8]} 21.
Nxc5 {[%clk 0:01:20.5]} 21... Qxa1 {[%clk 0:02:32.6]} 22. Ncb3 {[%clk
0:01:19.6]} 22... Qa7 {[%clk 0:02:31.1]} 23. h3 {[%clk 0:01:20.7]} 23... Qf2
{[%clk 0:02:22.7]} 24. e5 {[%clk 0:00:52]} 24... dxe5 {[%clk 0:02:06.1]} 25.
fxe5 {[%clk 0:00:51.9]} 25... Nh5 {[%clk 0:01:18.7]} 26. Ne4 {[%clk 0:00:51.6]}
26... Ng3+ {[%clk 0:01:19]} 27. Nxg3 {[%clk 0:00:52.4]} 27... Qxg3 {[%clk
0:01:20.9]} 28. Re3 {[%clk 0:00:45.6]} 28... Qh4 {[%clk 0:01:22]} 29. Nd4 {[%clk
0:00:32.9]} 29... Bb7 {[%clk 0:01:13.1]} 30. Nf3 {[%clk 0:00:27.9]} 30... Qd8
{[%clk 0:01:14.1]} 31. Bc4 {[%clk 0:00:28.3]} 31... Rc8 {[%clk 0:01:14.7]} 32.
b3 {[%clk 0:00:29.4]} 32... Rc5 {[%clk 0:01:11]} 33. d6 {[%clk 0:00:24.1]} 33...
Bxf3 {[%clk 0:01:11.4]} 34. Qxf3 {[%clk 0:00:20.3]} 34... Qd7 {[%clk 0:01:12.2]}
35. Re1 {[%clk 0:00:04.5]} 35... Rcxe5 {[%clk 0:01:11.6]} 36. Rf1 {[%clk
0:00:05.9]} 36... Rf5 {[%clk 0:01:12.6]} 37. Qd1 {[%clk 0:00:04.3]} 37... Rxf1+
{[%clk 0:01:12.8]} 38. Qxf1 {[%clk 0:00:05.4]} 38... Be5 {[%clk 0:01:08.6]} 39.
Bb5 {[%clk 0:00:06.2]} 39... Qd8 {[%clk 0:00:56.8]} 40. Bxe8 {[%clk 0:00:08.1]}
40... Qxe8 {[%clk 0:00:58.7]} 41. Qe2 {[%clk 0:00:09.2]} 41... Qe6 {[%clk
0:00:55.6]} 42. d7 {[%clk 0:00:09.4]} 42... Qxd7 {[%clk 0:00:17.1]} 43. Qxe5
{[%clk 0:00:10.9]} 43... Qd1+ {[%clk 0:00:18.2]} 44. Kh2 {[%clk 0:00:12.6]}
44... Qxc1 {[%clk 0:00:19.6]} 45. Qb8+ {[%clk 0:00:12.9]} 45... Kg7 {[%clk
0:00:20.5]} 46. Qxb4 {[%clk 0:00:14.2]} 46... Qb2 {[%clk 0:00:21.1]} 47. Qb8
{[%clk 0:00:12.9]} 47... g5 {[%clk 0:00:18.7]} 48. b4 {[%clk 0:00:13.8]} 48...
f5 {[%clk 0:00:20.1]} 49. b5 {[%clk 0:00:11.9]} 49... f4 {[%clk 0:00:21.6]} 50.
b6 {[%clk 0:00:08.8]} 50... Qb3 {[%clk 0:00:19.6]} 51. Qc7+ {[%clk 0:00:05.3]}
51... Kg6 {[%clk 0:00:21.2]} 52. Qc6+ {[%clk 0:00:06.5]} 52... Kg7 {[%clk
0:00:23.1]} 53. Qc7+ {[%clk 0:00:05.3]} 53... Kg6 {[%clk 0:00:24.3]} 54. Qd6+
{[%clk 0:00:06.4]} 54... Kh5 {[%clk 0:00:22.4]} 55. Qd1+ {[%clk 0:00:07.5]}
55... Qxd1 {[%clk 0:00:23]} 0-1

[Event "*** Titled Tuesday 3|2 Blitz"]
[Site "Chess.com"]
[Date "2015.10.06"]
[Round "9"]
[White "metalbattler"]
[Black "Carolina-moon"]
[Result "1/2-1/2"]
[WhiteElo "1945"]
[BlackElo "2029"]
[TimeControl "180+2"]
[EndTime "12:56:05 PDT"]
[Termination "Game drawn by agreement"]

1. e4 {[%clk 0:03:01.9]} 1... c5 {[%clk 0:03:00.2]} 2. Nc3 {[%clk 0:03:02.4]}
2... Nc6 {[%clk 0:02:59]} 3. f4 {[%clk 0:03:03.5]} 3... g6 {[%clk 0:02:53.4]} 4.
Nf3 {[%clk 0:03:04.3]} 4... Bg7 {[%clk 0:02:53.1]} 5. Bb5 {[%clk 0:03:04.9]}
5... Nd4 {[%clk 0:02:51]} 6. O-O {[%clk 0:03:05.2]} 6... e6 {[%clk 0:02:48.9]}
7. d3 {[%clk 0:03:02.6]} 7... a6 {[%clk 0:02:49.2]} 8. Bc4 {[%clk 0:03:01.4]}
8... b5 {[%clk 0:02:47.2]} 9. Bb3 {[%clk 0:03:02.3]} 9... Ne7 {[%clk 0:02:47.6]}
10. Nxd4 {[%clk 0:03:02.6]} 10... cxd4 {[%clk 0:02:47.2]} 11. Ne2 {[%clk
0:03:04.1]} 11... O-O {[%clk 0:02:41.7]} 12. Qe1 {[%clk 0:03:02.5]} 12... d5
{[%clk 0:02:38.8]} 13. e5 {[%clk 0:02:59.4]} 13... f6 {[%clk 0:02:24]} 14. Nxd4
{[%clk 0:02:54.6]} 14... fxe5 {[%clk 0:02:23.6]} 15. fxe5 {[%clk 0:02:56.1]}
15... Rxf1+ {[%clk 0:02:23.2]} 16. Kxf1 {[%clk 0:02:58]} 16... Qc7 {[%clk
0:02:13]} 17. Bf4 {[%clk 0:02:49.6]} 17... Bd7 {[%clk 0:02:09]} 18. Kg1 {[%clk
0:02:37.2]} 18... Rf8 {[%clk 0:02:06.1]} 19. Qe3 {[%clk 0:02:11.4]} 19... Qb6
{[%clk 0:01:15.5]} 20. Re1 {[%clk 0:02:06.1]} 20... a5 {[%clk 0:01:09.4]} 21. a3
{[%clk 0:01:45.7]} 21... a4 {[%clk 0:01:04.6]} 22. Ba2 {[%clk 0:01:45.3]} 22...
b4 {[%clk 0:01:05.3]} 23. Kh1 {[%clk 0:01:30.4]} 23... bxa3 {[%clk 0:01:03.2]}
24. Nf5 {[%clk 0:00:38.3]} 24... Qxe3 {[%clk 0:01:02.2]} 25. Nxe7+ {[%clk
0:00:38.9]} 25... Kf7 {[%clk 0:01:02.8]} 26. Bxe3 {[%clk 0:00:39.9]} 26... Kxe7
{[%clk 0:01:01.7]} 27. Bc5+ {[%clk 0:00:40]} 27... Ke8 {[%clk 0:01:02.1]} 28.
Bxf8 {[%clk 0:00:40.8]} 28... Bxf8 {[%clk 0:01:02]} 29. bxa3 {[%clk 0:00:42.4]}
29... Bxa3 {[%clk 0:01:02]} 30. Kg1 {[%clk 0:00:41]} 30... Bb2 {[%clk
0:01:02.4]} 31. Kf2 {[%clk 0:00:40.5]} 31... Bc3 {[%clk 0:00:59.6]} 32. Re2
{[%clk 0:00:37.9]} 32... Bc6 {[%clk 0:00:54.4]} 33. g4 {[%clk 0:00:28.4]} 33...
g5 {[%clk 0:00:51.7]} 34. Kg3 {[%clk 0:00:28.2]} 34... Ke7 {[%clk 0:00:47.9]}
35. h4 {[%clk 0:00:29.2]} 35... h6 {[%clk 0:00:48.4]} 36. hxg5 {[%clk 0:00:30]}
36... hxg5 {[%clk 0:00:50.3]} 37. Kf3 {[%clk 0:00:24.7]} 37... d4+ {[%clk
0:00:36.5]} 38. Kg3 {[%clk 0:00:24]} 38... Bd5 {[%clk 0:00:34.8]} 39. Bxd5
{[%clk 0:00:23.3]} 39... exd5 {[%clk 0:00:35.9]} 40. Rh2 {[%clk 0:00:24.8]}
40... a3 {[%clk 0:00:36.7]} 41. Rh7+ {[%clk 0:00:23.6]} 41... Ke6 {[%clk
0:00:38.1]} 42. Ra7 {[%clk 0:00:24.4]} 42... Bb2 {[%clk 0:00:39.2]} 43. Kf3
{[%clk 0:00:20.6]} 43... Kxe5 {[%clk 0:00:40.5]} 44. Re7+ {[%clk 0:00:20.3]}
44... Kd6 {[%clk 0:00:41.4]} 45. Ra7 {[%clk 0:00:21.8]} 45... Kc5 {[%clk
0:00:42.2]} 46. Ke2 {[%clk 0:00:21.5]} 46... Kb4 {[%clk 0:00:43.2]} 47. Kd2
{[%clk 0:00:20.1]} 47... Ba1 {[%clk 0:00:35.1]} 48. Rb7+ {[%clk 0:00:18.9]}
48... Ka5 {[%clk 0:00:34.2]} 49. Ra7+ {[%clk 0:00:19.8]} 49... Kb4 {[%clk
0:00:33.2]} 50. Rb7+ {[%clk 0:00:20.8]} 50... Kc5 {[%clk 0:00:33.3]} 51. Rc7+
{[%clk 0:00:19]} 51... Kd6 {[%clk 0:00:33.2]} 52. Ra7 {[%clk 0:00:19.9]} 52...
Bb2 {[%clk 0:00:34.2]} 53. Ke2 {[%clk 0:00:16.6]} 53... Ke5 {[%clk 0:00:35.4]}
54. Kf3 {[%clk 0:00:17.5]} 54... Bc1 {[%clk 0:00:32.8]} 55. Ra8 {[%clk
0:00:15.8]} 55... Bb2 {[%clk 0:00:32.3]} 56. Ra6 {[%clk 0:00:16.8]} 56... Bc1
{[%clk 0:00:30.9]} 57. Ra8 {[%clk 0:00:17.9]} 57... Bb2 {[%clk 0:00:27.3]} 58.
Ra6 {[%clk 0:00:18.7]} 1/2-1/2

[Event "*** Titled Tuesday 3|2 Blitz"]
[Site "Chess.com"]
[Date "2015.10.06"]
[Round "9"]
[White "tac49"]
[Black "gmjlh"]
[Result "0-1"]
[WhiteElo "2470"]
[BlackElo "2627"]
[TimeControl "180+2"]
[EndTime "12:56:18 PDT"]
[Termination "gmjlh won by resignation"]

1. e4 {[%clk 0:02:55.4]} 1... e5 {[%clk 0:03:00]} 2. Nf3 {[%clk 0:02:56.4]} 2...
Nc6 {[%clk 0:03:01]} 3. Bb5 {[%clk 0:02:53.7]} 3... Nf6 {[%clk 0:03:02]} 4. O-O
{[%clk 0:02:48.8]} 4... Nxe4 {[%clk 0:03:03.1]} 5. Re1 {[%clk 0:02:49.2]} 5...
Nd6 {[%clk 0:03:04.3]} 6. Nxe5 {[%clk 0:02:49.3]} 6... Be7 {[%clk 0:03:05.5]} 7.
Bf1 {[%clk 0:02:49.9]} 7... Nf5 {[%clk 0:03:04.8]} 8. d4 {[%clk 0:02:38.2]} 8...
Nfxd4 {[%clk 0:03:03.2]} 9. Nc3 {[%clk 0:02:18.2]} 9... O-O {[%clk 0:03:00.6]}
10. Nd5 {[%clk 0:02:18.1]} 10... Bf6 {[%clk 0:02:59.1]} 11. Nxf6+ {[%clk
0:02:04.6]} 11... Qxf6 {[%clk 0:02:57.9]} 12. c3 {[%clk 0:01:40.5]} 12... Nxe5
{[%clk 0:02:50.9]} 13. cxd4 {[%clk 0:01:25.2]} 13... Ng6 {[%clk 0:02:51.6]} 14.
d5 {[%clk 0:01:12.5]} 14... d6 {[%clk 0:02:36.5]} 15. Qc2 {[%clk 0:01:13.1]}
15... Qd8 {[%clk 0:02:29.2]} 16. Bd2 {[%clk 0:01:09.2]} 16... Bd7 {[%clk
0:02:29.9]} 17. Rac1 {[%clk 0:01:08.6]} 17... c5 {[%clk 0:02:30.6]} 18. dxc6
{[%clk 0:01:05.9]} 18... Bxc6 {[%clk 0:02:31.7]} 19. Bb4 {[%clk 0:01:02.4]}
19... Nh4 {[%clk 0:02:17.7]} 20. Re3 {[%clk 0:00:40.1]} 20... Re8 {[%clk
0:01:19.5]} 21. Rxe8+ {[%clk 0:00:37.9]} 21... Bxe8 {[%clk 0:01:21.4]} 22. Qe4
{[%clk 0:00:21.9]} 22... Bc6 {[%clk 0:01:17.5]} 23. Qg4 {[%clk 0:00:22.2]} 23...
Ng6 {[%clk 0:01:12.9]} 24. Bc3 {[%clk 0:00:20.2]} 24... Qh4 {[%clk 0:01:10.4]}
25. Qxh4 {[%clk 0:00:20.5]} 25... Nxh4 {[%clk 0:01:12.3]} 26. Rd1 {[%clk
0:00:21.2]} 26... Rd8 {[%clk 0:01:12.2]} 27. f3 {[%clk 0:00:19.3]} 27... Nf5
{[%clk 0:01:12.2]} 28. Kf2 {[%clk 0:00:19.2]} 28... h5 {[%clk 0:01:12]} 29. b4
{[%clk 0:00:18.3]} 29... a6 {[%clk 0:01:11.9]} 30. Rd2 {[%clk 0:00:15.5]} 30...
Ne7 {[%clk 0:01:13.1]} 31. Bd4 {[%clk 0:00:15.9]} 31... d5 {[%clk 0:01:05.7]}
32. a3 {[%clk 0:00:16.4]} 32... Ba4 {[%clk 0:01:01.7]} 33. Bd3 {[%clk
0:00:15.8]} 33... Nc6 {[%clk 0:01:01.6]} 34. Bb6 {[%clk 0:00:15.9]} 34... Re8
{[%clk 0:01:02.2]} 35. Re2 {[%clk 0:00:17.2]} 35... Rxe2+ {[%clk 0:00:59.2]} 36.
Kxe2 {[%clk 0:00:19.1]} 36... Bb5 {[%clk 0:01:00.1]} 37. Ke3 {[%clk 0:00:17.2]}
37... Bxd3 {[%clk 0:00:59]} 38. Kxd3 {[%clk 0:00:19.1]} 38... f6 {[%clk
0:00:58.5]} 39. Kc3 {[%clk 0:00:18.1]} 39... Kf7 {[%clk 0:00:59.3]} 40. a4
{[%clk 0:00:19.4]} 40... Ke6 {[%clk 0:00:58.9]} 41. b5 {[%clk 0:00:20.7]} 41...
axb5 {[%clk 0:00:53.3]} 42. axb5 {[%clk 0:00:22.6]} 42... Ne5 {[%clk 0:00:54.5]}
43. Bc5 {[%clk 0:00:21.3]} 43... Nd7 {[%clk 0:00:50.8]} 44. Bd4 {[%clk
0:00:22.2]} 44... Kd6 {[%clk 0:00:48.9]} 45. Kd3 {[%clk 0:00:19.3]} 45... Nc5+
{[%clk 0:00:46.2]} 46. Ke3 {[%clk 0:00:19.1]} 46... Ne6 {[%clk 0:00:47.4]} 47.
Bb6 {[%clk 0:00:19.9]} 47... Ke5 {[%clk 0:00:44.9]} 48. Ba7 {[%clk 0:00:16.8]}
48... d4+ {[%clk 0:00:45.5]} 49. Kd3 {[%clk 0:00:17.2]} 49... Kd5 {[%clk
0:00:46.5]} 50. g3 {[%clk 0:00:15.1]} 50... g5 {[%clk 0:00:47.1]} 51. Bb6 {[%clk
0:00:14.3]} 51... f5 {[%clk 0:00:48.3]} 52. h3 {[%clk 0:00:14.1]} 52... g4
{[%clk 0:00:32.3]} 53. hxg4 {[%clk 0:00:14.3]} 53... hxg4 {[%clk 0:00:32]} 54.
fxg4 {[%clk 0:00:16.2]} 54... fxg4 {[%clk 0:00:33.9]} 55. Ba7 {[%clk 0:00:14.4]}
55... Nc5+ {[%clk 0:00:34.8]} 56. Ke2 {[%clk 0:00:11.4]} 56... Nd7 {[%clk
0:00:34.2]} 57. Kd3 {[%clk 0:00:11]} 57... Ne5+ {[%clk 0:00:35.4]} 58. Ke2
{[%clk 0:00:12.1]} 58... Kc4 {[%clk 0:00:36.6]} 59. Bb8 {[%clk 0:00:12.6]} 59...
Nf3 {[%clk 0:00:37.8]} 60. b6 {[%clk 0:00:13]} 60... Kc3 {[%clk 0:00:36.3]} 61.
Bf4 {[%clk 0:00:12.2]} 61... Kc2 {[%clk 0:00:36.9]} 62. Kf2 {[%clk 0:00:11.1]}
62... d3 {[%clk 0:00:37]} 0-1